bitfinex/quotes_ETHUSD_20241104
["timestamp","ask_amount","ask_price","bid_price","bid_amount"]
[1730754561960,0.01,2426.3,2425.9,4.29200876]
[1730754562176,0.01,2426.3,2426.0,4.29178876]
[1730754562336,0.01,2426.3,2426.0,4.12193]
[1730754562536,0.01,2426.3,2426.1,0.16987172]
[1730754562890,0.01,2426.3,2426.0,4.12193]
[1730754563176,0.01,2426.3,2426.1,0.16987103]
[1730754563376,0.01,2426.3,2426.0,4.12193]
[1730754563546,0.01,2426.3,2425.7,3.8258]
[1730754563547,0.01,2426.3,2426.1,4.29172248]
[1730754563889,0.01,2426.3,2426.2,4.29155352]
[1730754564056,0.01,2426.3,2426.2,0.16988352]
[1730754565171,0.01,2426.3,2426.1,4.87283]
[1730754565377,0.01,2426.3,2426.2,0.16991015]
[1730754565584,0.01,2426.3,2426.1,4.87283]
[1730754566135,0.01,2426.3,2425.9,0.751]
[1730754566376,0.7927,2426.1,2426.0,0.4418636]
[1730754566648,4.91454,2426.1,2426.0,0.16993757]
[1730754566956,4.12217,2426.0,2425.7,0.27198175]
[1730754567156,4.12217,2426.0,2425.8,0.16997127]
[1730754567357,4.12217,2426.0,2425.9,0.16997127]
[1730754567563,5.025841,2426.0,2425.9,0.16997127]
[1730754567790,0.913671,2426.0,2425.9,0.16997127]
[1730754567994,0.7927,2426.1,2425.9,0.16997127]
[1730754568157,0.01,2426.1,2425.9,0.16997127]
[1730754568358,0.01,2426.1,2426.0,0.16997127]
[1730754569261,4.13184,2426.1,2425.7,4.12251]
[1730754569461,4.13184,2426.1,2426.0,0.17011258]
[1730754569718,5.8551286,2426.1,2426.0,0.17011258]
[1730754570060,5.8551286,2426.1,2426.0,0.34020448]
[1730754570284,5.8551286,2426.1,2426.0,0.17011258]
[1730754570502,5.8551286,2426.1,2426.0,0.34022171]
[1730754572419,5.8551286,2426.1,2426.0,0.17011258]
[1730754575232,6.01870542,2426.1,2426.0,0.17011258]
[1730754576220,6.01870542,2426.1,2425.5,8.24564]
[1730754576383,4.12215,2426.0,2425.6,0.44221861]
[1730754576725,4.12219,2425.9,2425.5,4.12279]
[1730754576886,4.28576682,2425.9,2425.7,0.2721444]
[1730754577089,4.29576682,2425.9,2425.8,0.17007403]
[1730754577686,6.13788736,2425.9,2425.8,0.17007403]
[1730754577927,0.01,2425.4,2425.3,0.27210591]
[1730754578240,0.01,2425.4,2425.3,4.56524656]
[1730754578446,0.16357682,2425.4,2425.3,4.56524656]
[1730754578741,0.01,2425.5,2425.3,4.56521656]
[1730754578948,0.16357682,2425.4,2425.3,8.24616]
[1730754579252,0.01,2425.7,2425.3,7.77719191]
[1730754579536,0.01,2425.7,2425.6,4.12269]
[1730754579743,0.01,2425.7,2425.6,4.29268577]
[1730754580044,0.01,2425.7,2425.6,0.16999577]
[1730754580538,0.01,2425.7,2425.6,0.44187915]
[1730754580702,0.01,2425.7,2425.6,0.16994354]
[1730754580904,0.01,2425.7,2425.5,4.12272]
[1730754581099,0.01,2425.7,2425.6,0.27193128]
[1730754581405,0.01,2425.7,2425.6,0.44186109]
[1730754583609,0.01,2425.9,2425.6,4.56446109]
[1730754583843,0.01,2425.9,2425.8,4.12235]
[1730754584055,0.01,2426.1,2425.8,4.56422695]
[1730754584353,0.01,2426.1,2425.8,4.12235]
[1730754584563,0.01,2426.1,2425.9,4.29205125]
[1730754584708,0.01,2426.1,2426.0,0.16995125]
[1730754586857,0.01,2426.1,2425.9,4.12214]
[1730754589058,0.01,2426.1,2425.9,4.12209]
[1730754590161,0.16354551,2426.0,2425.9,4.12209]
[1730754590456,0.16354551,2426.0,2425.9,4.29212916]
[1730754590937,0.16354551,2426.0,2425.9,0.17003916]
[1730754591862,0.16354551,2426.0,2425.9,4.29221916]
[1730754592226,0.16354551,2426.0,2425.9,4.29222769]
[1730754592425,0.16354551,2426.0,2425.9,4.56432269]
[1730754594624,0.8158,2426.3,2425.9,4.56432269]
[1730754594934,0.16354551,2426.2,2426.0,0.17004769]
[1730754595133,4.93732,2426.3,2426.1,0.17004769]
[1730754595466,0.01,2426.3,2426.1,4.93003]
[1730754595764,0.01,2426.3,2426.2,0.17009458]
[1730754598735,2.15315671,2426.5,2426.3,4.12142]
[1730754598736,0.01,2426.5,2426.3,4.12142]
[1730754598923,0.01,2426.5,2426.4,0.17009458]
[1730754601886,4.13116,2426.5,2426.0,7.12187]
[1730754602038,4.12134,2426.4,2426.1,0.44193594]
[1730754602243,0.01,2426.3,2426.2,0.16996539]
[1730754602554,4.1315,2426.3,2425.8,4.12231]
[1730754602751,0.8029,2426.4,2425.9,0.16994767]
[1730754602752,0.01,2426.1,2425.9,0.16994767]
[1730754602957,4.93479,2426.1,2426.0,0.16994767]
[1730754603151,4.93479,2426.1,2425.7,0.7992]
[1730754603152,5.840406,2426.1,2425.7,7.12251]
[1730754603376,0.01,2425.9,2425.8,0.16994415]
[1730754605159,0.17375581,2425.9,2425.7,4.12244]
[1730754605368,0.17375581,2425.9,2425.8,0.16994938]
[1730754607441,5.05573581,2425.9,2425.3,4.1231]
[1730754607645,0.01,2425.7,2425.6,4.12269]
[1730754607879,0.01,2425.7,2425.6,4.29264445]
[1730754608084,0.17375581,2425.7,2425.6,0.16995445]
[1730754608394,0.17375581,2425.7,2425.6,0.44192785]
[1730754608555,0.17375581,2425.7,2425.6,0.16995445]
[1730754609299,0.17375581,2425.7,2425.6,0.44195282]
[1730754610674,0.17375581,2425.7,2425.6,4.56464282]
[1730754610887,0.17375581,2425.7,2425.6,0.44195282]
[1730754611095,0.16375581,2425.7,2425.6,5.36304282]
[1730754611243,0.01,2425.9,2425.6,5.36304282]
[1730754611582,0.01,2425.9,2425.8,4.12235]
[1730754611742,0.01,2425.9,2425.8,4.29230445]
[1730754612447,0.01,2425.9,2425.8,4.29238602]
[1730754613761,0.01,2425.9,2425.8,0.17003602]
[1730754614791,0.01,2425.9,2425.8,0.17003127]
[1730754615355,0.01,2425.9,2425.7,4.12249]
[1730754617286,0.01,2425.9,2425.8,0.17000469]
[1730754618489,0.01,2425.9,2425.6,4.92105]
[1730754618690,0.01,2425.9,2425.7,0.17000697]
[1730754618887,0.01,2425.9,2425.6,4.92105]
[1730754619054,0.01,2425.9,2425.7,0.17000785]
[1730754619251,0.01,2425.9,2425.6,4.92105]
[1730754619489,0.01,2425.9,2425.7,0.17000023]
[1730754619698,0.01,2425.9,2425.6,4.92105]
[1730754619858,0.01,2425.9,2425.7,0.16999869]
[1730754620058,0.01,2425.9,2425.6,4.92105]
[1730754620059,0.16368421,2425.8,2425.6,4.92105]
[1730754620270,0.16368421,2425.8,2425.7,4.29251293]
[1730754620470,0.16368421,2425.8,2425.7,0.16999293]
[1730754622895,0.16368421,2425.8,2425.6,6.46479198]
[1730754623123,0.16368421,2425.8,2425.7,4.29250018]
[1730754623277,0.16368421,2425.8,2425.7,4.12252]
[1730754623479,0.16368421,2425.8,2425.7,0.16997332]
[1730754623700,0.93058421,2425.8,2425.7,0.16997332]
[1730754623907,1.43686163,2425.8,2425.7,0.16995623]
[1730754624201,0.66996163,2425.8,2425.7,0.16995623]
[1730754624411,0.16368421,2425.8,2425.7,0.16995623]
[1730754625502,0.16368421,2425.8,2425.7,0.16993939]
[1730754626828,0.16368421,2425.8,2425.7,0.16994409]
[1730754627130,0.16368421,2425.8,2425.7,4.29246409]
[1730754627288,0.01,2426.1,2425.9,4.12213]
[1730754627495,0.01,2426.1,2425.9,9.78802198]
[1730754627700,0.01,2426.1,2426.0,0.1699707]
[1730754628515,0.01,2426.1,2426.0,4.2919807]
[1730754629118,0.01,2426.1,2426.0,0.1699707]
[1730754629411,0.01,2426.3,2426.0,4.2918707]
[1730754629616,0.01,2426.3,2426.1,0.1699707]
[1730754629921,0.01,2426.3,2426.2,0.17003316]
[1730754631279,0.01,2426.3,2426.0,4.1219]
[1730754631480,0.01,2426.3,2426.1,0.17001711]
[1730754631674,0.01,2426.3,2426.2,0.17001711]
[1730754632915,4.1315,2426.3,2426.2,0.17001711]
[1730754633117,4.12195,2426.1,2425.7,5.32849198]
[1730754633327,4.12195,2426.1,2425.8,0.44230743]
[1730754633616,4.12195,2426.1,2425.9,0.17010826]
[1730754633917,4.12195,2426.1,2425.7,9.45094198]
[1730754634108,4.12195,2426.1,2426.0,0.17010502]
[1730754634508,4.1217,2426.2,2426.0,0.17010502]
[1730754634816,0.01,2426.1,2425.8,7.12231]
[1730754635020,0.01,2425.9,2425.7,9.45093198]
[1730754635317,0.01,2425.9,2425.8,3.44224502]
[1730754635883,0.01,2425.9,2425.8,7.56459502]
[1730754636087,0.01,2426.1,2425.8,7.56459502]
[1730754636322,0.01,2426.1,2425.9,0.44222295]
[1730754637325,0.01,2426.1,2425.8,7.12235]
[1730754637705,0.01,2426.2,2425.9,4.12214]
[1730754638790,0.01,2426.2,2426.0,4.122]
[1730754639111,0.01,2426.2,2426.1,0.17006306]
[1730754640125,0.01,2426.2,2426.1,0.1700443]
[1730754640626,4.13167,2426.2,2425.8,4.12226]
[1730754640841,4.13167,2426.2,2425.9,0.44204849]
[1730754640985,5.034314,2426.2,2426.0,0.17000867]
[1730754641184,5.034314,2426.2,2425.8,4.12226]
[1730754641390,4.13167,2426.2,2425.9,0.17001693]
[1730754641775,4.13167,2426.2,2426.0,0.17001693]
[1730754642031,4.13167,2426.2,2425.8,4.12226]
[1730754642235,4.13167,2426.2,2425.9,0.17002357]
[1730754642429,4.13167,2426.2,2426.0,0.17002357]
[1730754642592,4.84165336,2426.2,2425.8,4.12226]
[1730754642792,4.84165336,2426.2,2425.9,0.17002481]
[1730754643018,4.84165336,2426.2,2426.0,0.17002481]
[1730754643346,4.84165336,2426.2,2426.1,0.17002481]
[1730754643797,4.84165336,2426.2,2425.8,4.12226]
[1730754643987,4.84165336,2426.2,2425.9,0.44206708]
[1730754644192,4.84165336,2426.2,2426.0,0.17001582]
[1730754644386,4.84165336,2426.2,2425.8,4.12226]
[1730754644592,4.84165336,2426.2,2425.9,0.17002953]
[1730754644816,4.84165336,2426.2,2426.0,0.17002953]
[1730754645014,4.84165336,2426.2,2425.8,4.12226]
[1730754645223,4.13201,2426.0,2425.9,0.442079]
[1730754645443,4.13201,2426.0,2425.9,0.17002041]
[1730754645444,4.95891,2426.0,2425.9,0.17002041]
[1730754645968,4.1222,2425.9,2425.6,3.0]
[1730754646101,4.1222,2425.9,2425.7,0.44209725]
[1730754646298,4.95891,2426.0,2425.8,0.17002742]
[1730754646541,4.95891,2426.0,2425.9,0.17002742]
[1730754647112,4.95891,2426.0,2425.9,0.17003551]
[1730754648306,6.17970373,2426.0,2425.9,0.17003551]
[1730754648507,0.01,2425.7,2425.4,4.12295]
[1730754648807,0.01,2425.7,2425.5,0.75123595]
[1730754649112,0.01,2425.7,2425.6,0.44214245]
[1730754649514,0.01,2425.7,2425.6,0.17004481]
[1730754650047,0.01,2425.7,2425.6,0.44215712]
[1730754650200,0.21569643,2425.7,2425.6,0.44215712]
[1730754650403,0.21569643,2425.7,2425.6,0.44214892]
[1730754650644,0.21569643,2425.7,2425.6,4.56483892]
[1730754651003,0.21569643,2425.7,2425.6,0.44214892]
[1730754653724,0.21569643,2425.7,2425.6,4.56483892]
[1730754654040,0.21569643,2425.7,2425.6,4.57918189]
[1730754654224,0.21569643,2425.7,2425.6,5.02132655]
[1730754655044,0.21569643,2425.7,2425.6,0.89863655]
[1730754655211,0.21569643,2425.7,2425.6,0.44214466]
[1730754655416,0.20569643,2425.7,2425.6,4.56483466]
[1730754655633,0.20569643,2425.7,2425.6,5.38943466]
[1730754655828,0.01,2425.9,2425.6,5.69845732]
[1730754656029,0.20540558,2425.7,2425.6,0.8246]
[1730754656246,4.13223,2425.9,2425.6,0.75109124]
[1730754656444,0.20540558,2425.7,2425.5,5.66660198]
[1730754656747,4.13223,2425.9,2425.6,0.44212885]
[1730754656951,4.13223,2425.9,2425.7,0.17003953]
[1730754657156,4.13223,2425.9,2425.8,0.17003953]
[1730754657454,5.040347,2425.9,2425.5,4.12277]
[1730754657753,5.040347,2425.9,2425.6,0.44210988]
[1730754657754,4.13223,2425.9,2425.6,0.44210988]
[1730754658043,4.13223,2425.9,2425.7,0.17003228]
[1730754658235,4.13223,2425.9,2425.5,4.12277]
[1730754658546,0.01,2425.7,2425.6,0.44209736]
[1730754658847,4.13219,2425.9,2425.6,0.44209736]
[1730754659007,4.13219,2425.9,2425.7,0.17002747]
[1730754659205,4.13219,2425.9,2425.8,0.17002747]
[1730754659411,0.01,2425.9,2425.8,0.17002747]
[1730754660746,0.01,2425.9,2425.8,0.17003535]
[1730754663154,4.628074,2425.9,2425.8,0.17003535]
[1730754663456,5.419874,2425.9,2425.5,0.27212313]
[1730754663656,4.92398,2425.9,2425.8,0.17006204]
[1730754664641,0.8018,2425.9,2425.8,0.17006204]
[1730754665157,5.12938558,2425.9,2425.8,0.17006204]
[1730754665684,0.21540558,2425.9,2425.8,0.17006204]
[1730754669961,0.17077787,2425.9,2425.8,0.17006204]
[1730754670150,4.9341,2426.1,2425.8,0.17006204]
[1730754670352,4.9341,2426.1,2425.9,0.17006204]
[1730754670663,9.0561,2426.1,2425.6,4.12262]
[1730754670865,9.0561,2426.1,2425.7,0.4424018]
[1730754671174,4.12201,2426.0,2425.8,0.17014455]
[1730754671374,4.12201,2426.0,2425.9,0.17014455]
[1730754674691,4.88031,2426.0,2425.9,0.17014455]
[1730754674971,4.88031,2426.0,2425.4,0.7869]
[1730754674972,4.12238,2425.8,2425.5,0.27238893]
[1730754675179,4.12238,2425.8,2425.6,0.44262437]
[1730754675359,4.12238,2425.8,2425.7,0.17023015]
[1730754675885,4.12221,2425.9,2425.7,0.44266547]
[1730754676043,4.12221,2425.9,2425.8,0.17023015]
[1730754677580,4.32649265,2425.9,2425.8,0.17023015]
[1730754678093,0.20428265,2425.9,2425.8,0.17027069]
[1730754678238,0.20428265,2425.9,2425.5,4.12279]
[1730754678443,0.20428265,2425.9,2425.6,0.17026374]
[1730754678761,0.20428265,2425.9,2425.7,0.44272323]
[1730754678947,4.32646265,2425.9,2425.8,0.17026374]
[1730754682249,0.20428265,2425.9,2425.8,0.17026374]
[1730754682768,4.32646265,2425.9,2425.8,0.17026374]
[1730754684430,0.20428265,2425.9,2425.8,0.17026374]
[1730754684935,4.32646265,2425.9,2425.8,0.17026374]
[1730754685112,4.32646265,2425.9,2425.5,0.30916252]
[1730754685310,4.12244,2425.8,2425.6,0.17069997]
[1730754685630,4.12244,2425.8,2425.7,0.17069997]
[1730754686431,4.12244,2425.8,2425.7,0.44383685]
[1730754686644,5.94010662,2425.8,2425.7,0.17069997]
[1730754686808,8.09515278,2425.8,2425.7,0.17069997]
[1730754687133,5.94010662,2425.8,2425.7,0.17069997]
[1730754687338,4.12278,2425.6,2425.2,12.280991]
[1730754687523,4.12278,2425.6,2425.3,0.75293739]
[1730754687721,4.12278,2425.6,2425.4,0.44367148]
[1730754687940,4.12278,2425.6,2425.5,0.44367148]
[1730754688298,4.76792534,2425.7,2425.5,0.44367148]
[1730754688629,4.9001,2425.8,2425.6,0.44367148]
[1730754688827,4.9001,2425.8,2425.7,0.1706329]
[1730754689030,4.9001,2425.8,2425.3,9.79001198]
[1730754689336,4.9001,2425.8,2425.4,0.47988146]
[1730754689550,4.12254,2425.7,2425.5,0.44366965]
[1730754689699,4.12254,2425.7,2425.6,0.17063687]
[1730754689894,4.12254,2425.7,2425.6,0.44367049]
[1730754690093,4.12254,2425.7,2425.6,0.17063687]
[1730754692323,4.12254,2425.7,2425.6,0.17061071]
[1730754693613,7.39393177,2425.7,2425.6,0.17061071]
[1730754693805,4.12303,2425.4,2425.3,0.30931597]
[1730754694118,4.12303,2425.4,2425.3,0.44363067]
[1730754695319,4.32722316,2425.4,2425.3,0.44363067]
[1730754695520,5.15182316,2425.4,2425.3,0.17061721]
[1730754695732,4.1232,2425.3,2425.2,0.060261]
[1730754696020,4.1232,2425.3,2425.2,0.23084792]
[1730754696181,4.32739316,2425.3,2425.2,0.060261]
[1730754696383,6.23067467,2425.3,2425.2,0.060261]
[1730754696591,7.77446665,2425.3,2425.2,0.060261]
[1730754700693,4.12388,2424.9,2424.8,0.85462951]
[1730754700893,8.2580035,2424.9,2424.8,0.85462951]
[1730754701142,12.49717485,2424.9,2424.8,0.85462951]
[1730754701543,0.7856,2424.6,2424.0,0.060261]
[1730754701709,4.12501,2424.3,2424.0,0.060261]
[1730754701903,0.20365596,2424.2,2424.0,0.060261]
[1730754702105,4.12501,2424.3,2424.0,0.060261]
[1730754702548,0.20365596,2424.2,2424.0,0.060261]
[1730754702844,8.25,2424.3,2424.0,0.060261]
[1730754703009,4.32889596,2424.1,2424.0,0.060261]
[1730754703216,0.7645,2424.2,2424.0,0.060261]
[1730754703217,4.88965,2424.2,2424.0,0.060261]
[1730754703416,0.20342751,2424.1,2424.0,0.060261]
[1730754703810,4.32866751,2424.1,2424.0,0.060261]
[1730754704813,0.20342751,2424.1,2424.0,0.060261]
[1730754705101,0.20342751,2424.1,2424.0,0.885861]
[1730754705437,4.94717,2424.5,2424.0,5.011271]
[1730754705605,0.20333789,2424.1,2424.0,5.011271]
[1730754705806,0.8226,2424.5,2424.0,5.011271]
[1730754706000,0.20333789,2424.1,2424.0,5.011271]
[1730754706234,8.24959,2424.4,2424.0,0.885861]
[1730754706413,0.20333789,2424.1,2424.0,0.885861]
[1730754706614,4.12473,2424.4,2424.0,5.011241]
[1730754706911,1.4726902,2424.5,2424.0,5.011241]
[1730754706912,0.20333789,2424.1,2424.0,5.011241]
[1730754707539,0.20333789,2424.1,2424.0,0.885861]
[1730754707740,0.20333789,2424.1,2424.0,8.011271]
[1730754707945,4.12415,2424.8,2424.5,0.764]
[1730754708129,6.46050198,2425.0,2424.5,0.764]
[1730754708130,4.1239,2424.9,2424.5,4.88852]
[1730754708327,0.20293482,2424.7,2424.5,4.88852]
[1730754708649,0.20293482,2424.6,2424.5,0.764]
[1730754709151,4.1239,2424.9,2424.5,0.764]
[1730754709313,0.20301098,2424.6,2424.5,0.764]
[1730754709704,4.1239,2424.9,2424.5,0.764]
[1730754709940,0.20301098,2424.6,2424.5,0.764]
[1730754710144,4.12388,2424.9,2424.5,4.88856]
[1730754710318,0.2030513,2424.6,2424.5,0.764]
[1730754710526,4.12388,2424.9,2424.5,0.764]
[1730754710736,8.24789,2424.9,2424.5,0.764]
[1730754710944,0.2030513,2424.8,2424.5,0.764]
[1730754711154,4.12422,2424.7,2424.2,8.24991]
[1730754711359,4.12422,2424.7,2424.3,0.7585]
[1730754711760,0.2030513,2424.6,2424.3,4.88339]
[1730754711981,0.2030513,2424.6,2424.0,0.610261]
[1730754711982,4.12467,2424.5,2424.1,0.8325]
[1730754712262,0.9658513,2424.6,2424.0,0.060261]
[1730754712263,4.125,2424.3,2424.0,0.060261]
[1730754712619,8.24965,2424.4,2424.0,0.060261]
[1730754712822,0.2030513,2424.2,2424.0,0.060261]
[1730754713024,8.24965,2424.4,2424.0,0.060261]
[1730754713292,0.2030513,2424.1,2424.0,0.060261]
[1730754713562,4.12481,2424.4,2424.0,0.060261]
[1730754713736,0.2030513,2424.1,2424.0,4.185641]
[1730754714431,4.12477,2424.4,2424.0,0.060261]
[1730754714636,0.2030513,2424.1,2424.0,4.185651]
[1730754714832,4.12477,2424.4,2424.0,4.185651]
[1730754715021,0.2030513,2424.1,2424.0,4.185651]
[1730754715223,4.12477,2424.4,2424.0,4.185651]
[1730754715465,0.2030513,2424.1,2424.0,4.185651]
[1730754715759,4.12477,2424.4,2424.0,0.060261]
[1730754716366,0.2030513,2424.3,2424.0,0.060261]
[1730754716532,0.2030513,2424.3,2424.0,4.185621]
[1730754719510,0.2030513,2424.3,2424.0,0.060261]
[1730754719679,0.2030513,2424.3,2424.0,4.185601]
[1730754720916,4.3279513,2424.3,2424.0,0.060261]
[1730754724106,4.3279513,2424.3,2424.1,0.17011526]
[1730754724307,4.3279513,2424.3,2424.0,0.060261]
[1730754724500,4.3279513,2424.3,2424.1,0.1702449]
[1730754724838,4.3279513,2424.3,2424.0,0.060261]
[1730754725129,0.2030513,2424.3,2424.1,0.44287128]
[1730754725427,0.2030513,2424.3,2424.2,0.17024311]
[1730754725593,4.1246,2424.5,2424.2,0.17024311]
[1730754725794,5.31999713,2424.6,2424.3,0.17024311]
[1730754726017,5.31999713,2424.6,2424.3,0.7878]
[1730754726499,5.31999713,2424.6,2424.4,0.17049497]
[1730754726720,5.31999713,2424.6,2424.3,0.7878]
[1730754726721,4.55719713,2424.6,2424.3,0.7878]
[1730754727060,4.12447,2424.6,2424.4,0.17049269]
[1730754727338,4.12501,2424.3,2424.0,0.848061]
[1730754727539,4.12501,2424.3,2424.1,0.44347925]
[1730754727744,4.12501,2424.3,2424.2,0.17055898]
[1730754727941,5.025901,2424.3,2424.2,0.44349224]
[1730754728139,5.025901,2424.3,2424.2,0.44362118]
[1730754728662,5.025901,2424.3,2424.2,0.44364502]
[1730754728955,5.025901,2424.3,2424.2,0.17055898]
[1730754729268,5.025901,2424.3,2424.2,0.44364716]
[1730754729419,4.12501,2424.3,2424.2,0.44364716]
[1730754730182,4.12501,2424.3,2424.2,0.44373771]
[1730754731218,4.12501,2424.3,2424.2,0.44376517]
[1730754732272,4.8837,2424.5,2424.2,0.17065838]
[1730754732273,4.12475,2424.4,2424.2,0.17065838]
[1730754732478,4.12432,2424.7,2424.3,0.17065838]
[1730754732631,4.12432,2424.7,2424.4,0.44382052]
[1730754732969,0.7719,2424.9,2424.5,0.17065838]
[1730754733260,4.89585,2424.9,2424.6,0.17065838]
[1730754733456,4.12406,2424.8,2424.4,4.12469]
[1730754733766,4.12406,2424.8,2424.5,0.17066986]
[1730754733927,4.12406,2424.8,2424.6,0.17066954]
[1730754734122,4.12406,2424.8,2424.4,4.12469]
[1730754734365,4.89585,2424.9,2424.5,0.94097562]
[1730754734545,9.921771,2424.9,2424.6,0.17067562]
[1730754734728,5.797801,2424.9,2424.5,4.89483]
[1730754734931,4.89555,2425.1,2424.7,4.1241]
[1730754735233,4.12347,2425.2,2424.8,0.7703]
[1730754735958,4.1237,2425.1,2424.8,0.7703]
[1730754736163,4.12384,2425.0,2424.8,0.7703]
[1730754736351,4.12388,2424.9,2424.6,0.7703]
[1730754736525,4.12374,2425.0,2424.6,4.89468]
[1730754736922,4.12374,2425.0,2424.7,0.17061681]
[1730754736923,0.824726,2425.0,2424.7,0.17061681]
[1730754737164,4.12405,2424.8,2424.4,0.7703]
[1730754737463,4.12425,2424.7,2424.5,0.17063205]
[1730754737640,4.12425,2424.7,2424.4,0.7703]
[1730754737846,4.12425,2424.7,2424.5,0.17063109]
[1730754738169,4.89646,2424.5,2424.1,4.89544]
[1730754738468,0.57558541,2424.4,2424.2,0.17064162]
[1730754738671,4.89646,2424.5,2424.3,0.17064162]
[1730754738980,4.89646,2424.5,2424.1,4.89544]
[1730754739269,4.89646,2424.5,2424.2,0.17064846]
[1730754739465,4.89646,2424.5,2424.1,0.7703]
[1730754739762,4.12475,2424.4,2424.2,0.17107417]
[1730754739926,4.12475,2424.4,2424.0,0.060261]
[1730754740123,4.32782139,2424.3,2424.1,0.17105511]
[1730754740326,4.12515,2424.2,2424.0,0.060261]
[1730754740864,0.20292139,2424.1,2424.0,0.060261]
[1730754741029,0.20292139,2424.1,2424.0,0.23133395]
[1730754743247,5.026881,2424.4,2424.0,4.35674395]
[1730754743587,4.12492,2424.3,2424.1,0.17107295]
[1730754743768,5.1172901,2424.3,2424.0,0.060261]
[1730754743961,4.12492,2424.3,2424.1,0.17105164]
[1730754744185,4.12492,2424.3,2424.0,0.060261]
[1730754744386,5.026881,2424.4,2424.0,0.060261]
[1730754744590,0.7719,2424.5,2424.1,4.29617093]
[1730754744790,0.7719,2424.5,2424.2,0.7858]
[1730754744957,8.24896,2424.6,2424.2,0.7858]
[1730754745151,9.37035842,2424.6,2424.2,0.7858]
[1730754745550,1.12139842,2424.6,2424.2,4.91073]
[1730754745887,4.12414,2424.8,2424.2,0.7858]
[1730754745888,6.27813717,2424.8,2424.2,0.7858]
[1730754746061,4.12422,2424.7,2424.3,4.29582337]
[1730754746262,4.12422,2424.7,2424.3,4.1248]
[1730754748131,8.24856,2424.7,2424.3,4.1248]
[1730754748326,4.12422,2424.7,2424.3,4.1248]
[1730754748825,8.24854,2424.7,2424.3,4.1248]
[1730754749121,9.36544172,2424.7,2424.3,4.1248]
[1730754750023,4.12447,2424.6,2424.2,4.91084]
[1730754750234,4.12447,2424.6,2424.2,0.7858]
[1730754750620,4.12447,2424.6,2424.2,4.9108]
[1730754750814,4.12447,2424.6,2424.3,0.17101971]
[1730754751120,4.12457,2424.5,2424.2,0.7858]
[1730754751433,5.34094428,2424.6,2424.2,4.91086]
[1730754751634,4.12442,2424.6,2424.2,4.91086]
[1730754754120,0.20287209,2424.5,2424.2,4.91086]
[1730754756736,0.20287209,2424.5,2424.3,4.12489]
[1730754756925,6.28016501,2424.7,2424.2,4.91086]
[1730754756926,4.12446,2424.6,2424.2,4.91082]
[1730754757123,0.20306922,2424.4,2424.2,4.91082]
[1730754757329,4.12446,2424.6,2424.2,4.91082]
[1730754757525,0.20306922,2424.3,2424.2,4.91082]
[1730754757831,4.12446,2424.6,2424.2,5.08185345]
[1730754758043,0.20306922,2424.3,2424.2,0.7858]
[1730754758237,4.7525965,2424.5,2424.2,0.95684196]
[1730754758449,6.28036501,2424.6,2424.2,4.91087]
[1730754758450,0.20306922,2424.3,2424.2,4.91087]
[1730754758648,10.40483501,2424.6,2424.2,4.91087]
[1730754758649,4.12446,2424.6,2424.2,4.91087]
[1730754759221,6.28013501,2424.7,2424.2,4.91079]
[1730754759425,0.20306922,2424.5,2424.3,4.29582387]
[1730754759626,4.1244,2424.6,2424.2,4.91079]
[1730754759929,4.1244,2424.6,2424.3,0.17106332]
[1730754760128,0.20306922,2424.5,2424.2,4.91079]
[1730754763956,0.8254,2424.4,2424.0,0.060261]
[1730754764114,4.12498,2424.3,2424.1,0.1711081]
[1730754764316,4.12498,2424.3,2424.0,0.060261]
[1730754764569,0.20306922,2424.2,2424.0,0.060261]
[1730754765058,0.20306922,2424.1,2424.0,0.060261]
[1730754765263,8.24998,2424.3,2424.0,0.23137229]
[1730754765461,8.99978559,2424.3,2424.1,0.17111129]
[1730754765642,8.99978559,2424.3,2424.0,0.060261]
[1730754765948,4.87478559,2424.3,2424.1,0.1711425]
[1730754766164,4.87478559,2424.3,2424.0,0.060261]
[1730754766348,8.99979559,2424.3,2424.1,0.17117464]
[1730754766650,8.99979559,2424.3,2424.0,0.060261]
[1730754766651,4.12507,2424.2,2424.0,0.060261]
[1730754766867,4.12507,2424.2,2424.1,0.17116751]
[1730754767346,4.87472559,2424.3,2424.1,0.17116751]
[1730754767517,4.87472559,2424.3,2424.0,0.060261]
[1730754767716,4.87472559,2424.3,2424.1,0.17117535]
[1730754767952,0.57001256,2424.2,2424.0,0.060261]
[1730754769630,4.87472559,2424.3,2424.0,0.060261]
[1730754770040,0.20298859,2424.2,2424.0,0.060261]
[1730754770230,4.87472559,2424.3,2424.0,0.060261]
[1730754770557,0.20298859,2424.2,2424.0,0.060261]
[1730754770863,0.20298859,2424.1,2424.0,0.060261]
[1730754771037,0.74980559,2424.3,2424.0,0.060261]
[1730754771237,0.20298859,2424.2,2424.0,0.060261]
[1730754771435,4.87477559,2424.3,2424.0,0.060261]
[1730754771960,0.20298859,2424.2,2424.0,0.060261]
[1730754772139,4.87477559,2424.3,2424.0,4.185661]
[1730754772140,0.74980559,2424.3,2424.0,4.185661]
[1730754772337,0.20298859,2424.1,2424.0,4.185601]
[1730754772632,0.20298859,2424.1,2424.0,4.3567367]
[1730754772838,7.1059079,2424.4,2424.0,0.2313967]
[1730754773025,5.03854938,2424.3,2424.0,0.060261]
[1730754773233,4.95644,2424.1,2424.0,0.060261]
[1730754773487,5.15929865,2424.1,2424.0,0.060261]
[1730754776306,7.31413277,2424.1,2424.0,0.060261]
[1730754776449,7.03241607,2424.1,2424.0,0.060261]
[1730754776649,9.61821701,2424.1,2424.0,0.060261]
[1730754776856,7.03241607,2424.1,2424.0,0.060261]
[1730754779399,10.04241607,2424.1,2424.0,0.060261]
[1730754780162,10.59241607,2424.1,2424.0,0.060261]
[1730754780888,13.60452031,2424.1,2424.0,0.060261]
[1730754781497,10.59241607,2424.1,2424.0,0.060261]
[1730754782813,10.60241607,2424.1,2424.0,0.060261]
[1730754783018,10.05241607,2424.1,2424.0,0.060261]
[1730754783218,12.631035,2424.1,2424.0,0.060261]
[1730754784615,10.05241607,2424.1,2424.0,0.060261]